bitfinex-derivatives/quotes_SOLF0:USTF0_20250318
["timestamp","ask_amount","ask_price","bid_price","bid_amount"]
[1742302459965,8.0834,123.72,123.7,8.13934211]
[1742302460165,42.58862438,123.73,123.7,0.05524211]
[1742302460669,8.084,123.71,123.7,0.05524211]
[1742302461262,37.084,123.71,123.7,0.05524211]
[1742302461563,50.65262438,123.71,123.7,0.05524211]
[1742302461864,42.56862438,123.71,123.64,266.88]
[1742302462058,13.56862438,123.68,123.64,266.88]
[1742302462366,29.0,123.67,123.64,266.88]
[1742302462968,42.62494148,123.67,123.64,266.93258103]
[1742302463271,13.56862438,123.65,123.64,266.93258103]
[1742302463468,42.56862438,123.65,123.64,266.93258103]
[1742302463663,42.56862438,123.65,123.64,0.05258103]
[1742302463664,50.65652438,123.65,123.64,0.05258103]
[1742302464867,50.65652438,123.65,123.64,8.103e-05]
[1742302466265,8.0906,123.61,123.6,266.84]
[1742302466464,37.0906,123.61,123.6,266.84]
[1742302466666,37.0906,123.61,123.59,8.0918]
[1742302467478,37.14810577,123.61,123.59,8.14495684]
[1742302467777,0.05750577,123.61,123.6,8.0912]
[1742302469076,0.05750577,123.61,123.6,21.65982438]
[1742302471274,0.05750577,123.61,123.6,50.67982438]
[1742302477274,5.77e-06,123.61,123.6,50.67982438]
[1742302477474,29.02,123.67,123.65,8.0874]
[1742302477871,37.107,123.67,123.65,8.0874]
[1742302478475,37.16392725,123.67,123.65,8.14578057]
[1742302479080,29.07692725,123.67,123.65,0.05838057]
[1742302480382,29.07692725,123.67,123.65,8.14568057]
[1742302481084,37.16362725,123.67,123.65,8.14568057]
[1742302481479,29.07692725,123.67,123.65,8.14568057]
[1742302481679,29.07692725,123.67,123.66,8.0873]
[1742302482081,29.07692725,123.67,123.65,0.05838057]
[1742302482278,37.16362725,123.67,123.65,8.14598057]
[1742302483181,29.07692725,123.67,123.65,8.14598057]
[1742302484176,37.16362725,123.67,123.65,8.14598057]
[1742302484579,0.05692725,123.67,123.66,8.0873]
[1742302484784,29.07692725,123.67,123.66,8.0873]
[1742302485584,37.16362725,123.67,123.65,8.14598057]
[1742302486481,29.07692725,123.67,123.66,8.0873]
[1742302487584,29.07692725,123.67,123.65,8.14598057]
[1742302489593,37.16372725,123.67,123.65,8.14598057]
[1742302489779,8.14372725,123.67,123.65,8.14598057]
[1742302489981,37.14372725,123.67,123.65,8.14598057]
[1742302491487,37.14372725,123.67,123.65,0.05838057]
[1742302493592,37.14372725,123.67,123.65,8.14628057]
[1742302493792,8.0873,123.66,123.65,0.05838057]
[1742302496885,37.14392725,123.67,123.65,0.05838057]
[1742302497089,37.14392725,123.67,123.65,8.14618057]
[1742302497894,8.0873,123.66,123.65,0.05838057]
[1742302498095,29.05692725,123.67,123.65,0.05838057]
[1742302498297,37.14382725,123.67,123.65,8.14628057]
[1742302499302,8.0873,123.66,123.65,0.05838057]
[1742302500496,8.0892,123.64,123.62,266.96]
[1742302501700,8.14038034,123.64,123.62,267.01550396]
[1742302502300,8.14038034,123.64,123.62,275.10530396]
[1742302502600,8.0892,123.63,123.62,267.01550396]
[1742302503900,50.65782438,123.63,123.62,0.05550396]
[1742302504301,42.56862438,123.63,123.58,266.92]
[1742302504501,13.56862438,123.61,123.58,266.92]
[1742302504800,42.56862438,123.61,123.58,266.92]
[1742302505205,29.0,123.61,123.58,275.0122]
[1742302505498,29.06133234,123.61,123.58,275.07072028]
[1742302505995,37.15233234,123.61,123.58,275.07072028]
[1742302506201,29.06133234,123.61,123.58,275.07072028]
[1742302508003,8.0912,123.6,123.58,275.07072028]
[1742302512507,29.06133234,123.61,123.59,8.0918]
[1742302512508,37.15223234,123.61,123.59,8.0918]
[1742302513707,37.15223234,123.61,123.58,275.07062028]
[1742302514508,37.15223234,123.61,123.59,8.0918]
[1742302516510,8.0912,123.6,123.58,275.07062028]
[1742302517608,29.06133234,123.61,123.58,280.54714466]
[1742302517809,0.06133234,123.61,123.6,13.56862438]
[1742302518209,29.02,123.65,123.6,13.56862438]
[1742302518413,29.02,123.65,123.62,13.56862438]
[1742302518811,29.02,123.65,123.63,8.0888]
[1742302519013,37.108,123.65,123.63,8.0888]
[1742302519613,37.15923745,123.65,123.63,8.14233599]
[1742302519815,37.15923745,123.65,123.63,0.05353599]
[1742302519816,8.0886,123.64,123.63,0.05353599]
[1742302526110,50.72826183,123.65,123.63,8.14273599]
[1742302526418,8.13963745,123.65,123.63,8.14273599]
[1742302526717,37.13963745,123.65,123.63,8.14273599]
[1742302528719,8.0886,123.64,123.63,0.05353599]
[1742302532420,14.87291219,123.64,123.63,0.05353599]
[1742302532625,21.65722438,123.64,123.63,0.05353599]
[1742302532819,21.65722438,123.64,123.63,3.599e-05]
[1742302535027,23.70972438,123.64,123.63,3.599e-05]
[1742302535630,8.0919,123.59,123.58,266.92]
[1742302535826,29.0,123.6,123.58,266.92]
[1742302536830,37.15047254,123.6,123.58,275.07274785]
[1742302538120,37.15047254,123.6,123.58,0.06024785]
[1742302538121,21.66052438,123.59,123.58,0.06024785]
[1742302540926,13.56862438,123.59,123.58,0.06024785]
[1742302541130,37.15027254,123.6,123.58,0.06024785]
[1742302541435,29.05887254,123.6,123.58,8.15254785]
[1742302542727,37.15007254,123.6,123.58,8.15254785]
[1742302543227,37.15007254,123.6,123.58,0.06024785]
[1742302544729,37.15007254,123.6,123.58,8.15274785]
[1742302545035,37.15007254,123.6,123.58,0.06024785]
[1742302545036,29.05887254,123.6,123.58,0.06024785]
[1742302545237,0.05887254,123.6,123.58,0.06024785]
[1742302545735,8.15037254,123.6,123.58,0.06024785]
[1742302547640,8.15037254,123.6,123.58,8.15264785]
[1742302547841,8.0919,123.59,123.58,0.06024785]
[1742302549236,8.15037254,123.6,123.58,8.15274785]
[1742302550544,8.15037254,123.6,123.58,0.06024785]
[1742302551144,8.0919,123.59,123.58,0.06024785]
[1742302551443,37.0919,123.59,123.58,0.06024785]
[1742302551841,50.66052438,123.59,123.58,0.06024785]
[1742302554538,29.0,123.59,123.58,8.15274785]
[1742302555845,29.0,123.59,123.58,0.06024785]
[1742302556943,37.0919,123.59,123.58,0.06024785]
[1742302557645,50.66052438,123.59,123.58,0.06024785]
[1742302564053,42.56862438,123.59,123.54,267.02]
[1742302564254,13.56862438,123.56,123.54,267.02]
[1742302564555,42.56862438,123.56,123.54,267.02]
[1742302564746,42.56862438,123.56,123.52,21.66482438]
[1742302564945,42.56862438,123.56,123.51,15.66342438]
[1742302565149,8.0956,123.54,123.51,10.1914]
[1742302565348,8.0956,123.54,123.52,0.06190487]
[1742302565549,37.0956,123.54,123.52,0.06190487]
[1742302566048,37.0956,123.54,123.52,8.15790487]
[1742302567357,29.0,123.54,123.53,8.0958]
[1742302567758,0.05347278,123.55,123.54,8.0951]
[1742302568557,0.05347278,123.55,123.52,0.06190487]
[1742302568952,8.0954,123.54,123.52,0.06190487]
[1742302569158,29.0,123.54,123.52,0.06190487]
[1742302569460,42.56862438,123.54,123.52,0.06190487]
[1742302570258,8.0958,123.53,123.52,0.06190487]
[1742302572759,37.0955,123.54,123.52,0.06190487]
[1742302573267,37.0955,123.54,123.52,8.15820487]
[1742302573660,29.0,123.54,123.52,0.06190487]
[1742302574563,29.0,123.54,123.53,8.0958]
[1742302574958,37.16827278,123.55,123.53,8.0958]
[1742302575160,29.07347278,123.55,123.53,8.0958]
[1742302575666,37.16827278,123.55,123.53,8.0958]
[1742302577570,29.07347278,123.55,123.52,0.06190487]
[1742302578073,29.07347278,123.55,123.53,8.0958]
[1742302578265,37.16817278,123.55,123.53,8.0958]
[1742302578973,29.07347278,123.55,123.53,8.0958]
[1742302579172,29.07347278,123.55,123.52,0.06190487]
[1742302579374,37.16797278,123.55,123.52,0.06190487]
[1742302579571,37.16797278,123.55,123.53,8.0953]
[1742302581673,29.07347278,123.55,123.53,8.0953]
[1742302582168,37.16857278,123.55,123.52,8.15800487]
[1742302582374,29.07347278,123.55,123.52,8.15800487]
[1742302582574,42.64209716,123.55,123.52,0.06190487]
[1742302582775,8.0958,123.53,123.52,0.06190487]
[1742302584874,37.1158,123.53,123.52,0.06190487]
[1742302587480,8.0971,123.51,123.5,267.08]
[1742302587679,42.58862438,123.53,123.5,267.08]
[1742302587879,42.58862438,123.53,123.5,275.1774]
[1742302588079,8.0967,123.52,123.5,275.1774]
[1742302588579,8.1569421,123.52,123.5,275.23608498]
[1742302589276,0.0602421,123.52,123.51,21.66572438]
[1742302589475,11.24802899,123.57,123.51,17.85662438]
[1742302589780,19.34142899,123.57,123.53,13.56862438]
[1742302590374,19.34142899,123.57,123.54,8.0945]
[1742302590580,0.052434,123.56,123.54,0.05695969]
[1742302590881,0.052434,123.56,123.55,8.0945]
[1742302591876,8.146234,123.56,123.54,0.05695969]
[1742302592678,0.052434,123.56,123.54,0.05695969]
[1742302592870,0.052434,123.56,123.54,13.62558407]
[1742302593080,0.052434,123.56,123.55,8.0945]
[1742302597885,0.052434,123.56,123.55,21.66312438]
[1742302600290,0.052434,123.56,123.55,8.0945]
[1742302600986,0.052434,123.56,123.54,29.07695969]
[1742302601188,42.62105838,123.56,123.54,0.05695969]
[1742302602588,8.0945,123.55,123.54,0.05695969]
[1742302606190,21.66312438,123.55,123.54,0.05695969]
[1742302607000,8.0945,123.55,123.54,0.05695969]
[1742302607297,37.146834,123.56,123.54,0.05695969]
[1742302608295,8.0945,123.55,123.54,0.05695969]
[1742302611702,21.66312438,123.55,123.54,0.05695969]
[1742302624205,8.0945,123.55,123.54,5.969e-05]
[1742302624709,21.66312438,123.55,123.54,5.969e-05]
[1742302635621,50.66312438,123.55,123.54,5.969e-05]
[1742302638432,37.0945,123.55,123.54,5.969e-05]
[1742302638728,50.66312438,123.55,123.54,5.969e-05]
[1742302639228,21.66312438,123.55,123.54,5.969e-05]
[1742302640027,8.0945,123.55,123.54,5.969e-05]
[1742302645330,21.66312438,123.55,123.54,5.969e-05]
[1742302647538,13.56862438,123.55,123.46,108.92102716]
[1742302647733,13.56862438,123.5,123.47,8.0994]
[1742302648329,13.56862438,123.5,123.46,108.92102716]
[1742302648522,13.626912,123.5,123.47,0.05746941]
[1742302649132,8.0991,123.48,123.47,0.05746941]
[1742302650534,8.0988,123.49,123.47,0.05746941]
[1742302651726,8.0988,123.49,123.47,8.15696941]
[1742302651937,0.05828762,123.5,123.47,0.05746941]
[1742302652136,0.05828762,123.5,123.47,13.62609379]
[1742302652332,0.05828762,123.5,123.49,8.0984]
[1742302653530,0.05828762,123.5,123.48,13.56862438]
[1742302653835,0.05828762,123.5,123.47,42.62609379]
[1742302654331,0.05828762,123.5,123.49,8.0984]
[1742302654734,8.15608762,123.5,123.47,42.62609379]
[1742302654930,0.05828762,123.5,123.47,42.62609379]
[1742302655732,0.05828762,123.5,123.47,29.05746941]
[1742302655934,0.05828762,123.5,123.47,42.62609379]
[1742302656333,0.05828762,123.5,123.49,8.0984]
[1742302658536,0.05828762,123.5,123.48,21.66732438]
[1742302658735,0.05828762,123.5,123.48,8.0987]
[1742302659135,8.15628762,123.5,123.48,8.0987]
[1742302659638,0.05828762,123.5,123.49,8.0984]
[1742302662033,0.05828762,123.5,123.48,8.0988]
[1742302662438,0.05828762,123.5,123.48,8.0987]
[1742302663142,8.15628762,123.5,123.48,8.0987]
[1742302664742,0.05828762,123.5,123.49,8.0984]
[1742302664942,0.05828762,123.5,123.47,42.62609379]
[1742302665339,8.15608762,123.5,123.48,8.0985]
[1742302666343,8.0984,123.49,123.47,29.05746941]
[1742302666840,8.15638762,123.5,123.47,37.15666941]
[1742302667039,0.05828762,123.5,123.47,37.15666941]
[1742302667547,0.05828762,123.5,123.47,50.72529379]
[1742302668043,0.05828762,123.5,123.47,42.62609379]
[1742302668546,8.0987,123.49,123.47,42.62609379]
[1742302668735,8.0987,123.49,123.47,50.72569379]
[1742302669047,8.0987,123.49,123.47,37.15706941]
[1742302669347,8.0991,123.48,123.47,0.05746941]
[1742302672049,21.66772438,123.48,123.47,0.05746941]
[1742302675844,13.56862438,123.48,123.47,0.05746941]
[1742302677446,29.0,123.49,123.47,0.05746941]
[1742302678047,29.0,123.49,123.47,8.15686941]
[1742302678247,29.0,123.49,123.47,0.05746941]
[1742302680251,29.0,123.49,123.47,8.15716941]
[1742302680946,42.56862438,123.49,123.47,0.05746941]
[1742302681159,50.66722438,123.49,123.47,0.05746941]
[1742302681652,42.56862438,123.49,123.47,8.15706941]
[1742302682150,42.56862438,123.49,123.48,8.0991]
[1742302682151,13.56862438,123.49,123.48,8.0991]
[1742302682450,29.0,123.49,123.48,8.0991]
[1742302683347,21.724812,123.5,123.49,8.0984]
[1742302683348,0.05828762,123.5,123.49,8.0984]
[1742302683549,0.05828762,123.5,123.49,50.66702438]
[1742302691362,13.56862438,123.57,123.54,8.0949]
[1742302691559,93.9589829,123.58,123.53,13.56862438]
[1742302691960,13.56862438,123.57,123.54,8.0948]
[1742302692663,13.62079372,123.57,123.54,8.14604798]
[1742302692864,21.71459372,123.57,123.55,8.0943]
[1742302693058,8.14596934,123.57,123.55,8.0943]
[1742302694267,0.05216934,123.57,123.54,13.61987236]
[1742302694664,0.05216934,123.57,123.54,42.61987236]
[1742302694866,0.05216934,123.57,123.55,13.56862438]
[1742302695169,0.05216934,123.57,123.56,13.56862438]
[1742302695466,0.05216934,123.57,123.56,21.66242438]
[1742302695869,0.05216934,123.57,123.56,50.66242438]
[1742302697370,0.05216934,123.57,123.56,42.56862438]
[1742302698465,0.05216934,123.57,123.56,50.66242438]
[1742302699168,0.05216934,123.57,123.56,37.0938]
[1742302699667,8.14536934,123.57,123.56,29.0]
[1742302701973,0.05216934,123.57,123.56,29.0]
[1742302703068,0.05216934,123.57,123.56,37.0938]
[1742302703875,8.14536934,123.57,123.56,29.0]
[1742302704679,0.05216934,123.57,123.56,29.0]
[1742302705376,8.14536934,123.57,123.56,29.0]
[1742302706281,0.05216934,123.57,123.56,29.0]
[1742302706482,0.05216934,123.57,123.56,37.0938]
[1742302706884,8.14536934,123.57,123.56,29.0]
[1742302709589,0.05216934,123.57,123.56,29.0]
[1742302711190,0.05216934,123.57,123.55,8.0941]
[1742302711982,0.05216934,123.57,123.54,50.69487236]
[1742302712489,8.0942,123.56,123.54,50.69487236]
[1742302712683,0.05216934,123.57,123.55,8.0945]
[1742302713292,8.14556934,123.57,123.55,8.0945]
[1742302713789,0.05216934,123.57,123.54,42.59987236]
[1742302714489,8.14536934,123.57,123.54,42.59987236]
[1742302714794,8.14536934,123.57,123.55,8.0942]
[1742302715292,0.05216934,123.57,123.54,42.59987236]
[1742302716497,8.14546934,123.57,123.55,8.094]
[1742302716690,8.14546934,123.57,123.54,42.59987236]
[1742302716892,0.05216934,123.57,123.54,42.59987236]
[1742302717496,0.05216934,123.57,123.55,8.0945]
[1742302718291,0.05216934,123.57,123.56,8.0938]
[1742302719493,8.14536934,123.57,123.55,8.0941]
[1742302720188,8.0938,123.56,123.55,8.0941]
[1742302720393,8.0938,123.56,123.54,50.69467236]
[1742302722199,8.14566934,123.57,123.55,8.0945]
[1742302725196,8.14566934,123.57,123.55,267.1]
[1742302725598,0.05216934,123.57,123.56,14.87811219]
[1742302725900,0.05216934,123.57,123.56,50.64242438]
[1742302726805,0.05216934,123.57,123.56,28.98]
[1742302727898,8.14536934,123.57,123.56,28.98]
[1742302728603,8.0938,123.56,123.55,267.1]
[1742302729499,21.66242438,123.56,123.55,267.1]
[1742302732099,8.0938,123.56,123.55,267.1]
[1742302737807,8.14566934,123.57,123.55,267.1]
[1742302738002,8.14566934,123.57,123.55,280.66862438]
[1742302738003,0.05216934,123.57,123.55,280.66862438]
[1742302738911,0.05216934,123.57,123.56,8.0938]
[1742302740207,8.14536934,123.57,123.55,288.76272438]
[1742302740608,0.05216934,123.57,123.55,267.1]
[1742302741908,8.0938,123.56,123.55,267.1]
[1742302742099,42.60079372,123.57,123.54,0.05124798]
[1742302742304,13.56862438,123.55,123.54,0.05124798]
[1742302742508,21.66312438,123.55,123.54,0.05124798]
[1742302743508,50.64312438,123.55,123.54,0.05124798]
[1742302748513,8.0945,123.55,123.54,0.05124798]
[1742302748814,42.60079372,123.57,123.54,0.05124798]
[1742302751010,13.56862438,123.56,123.54,0.05124798]
[1742302751210,50.64312438,123.55,123.54,0.05124798]
[1742302756118,37.0745,123.55,123.54,0.05124798]
[1742302757711,8.0945,123.55,123.54,0.05124798]
[1742302758919,0.05216934,123.57,123.54,0.05124798]
[1742302759315,0.05216934,123.57,123.54,13.61987236]
[1742302759511,8.14566934,123.57,123.55,8.0942]
[1742302760019,0.05216934,123.57,123.54,13.61987236]
[1742302760617,0.05216934,123.57,123.56,8.0938]
[1742302763018,8.14556934,123.57,123.55,8.0943]
[1742302763214,0.05216934,123.57,123.54,44.81237236]
[1742302763820,0.05216934,123.57,123.56,8.0938]
[1742302770324,0.05216934,123.57,123.56,275.2138]
[1742302771720,0.05216934,123.57,123.56,267.12]
[1742302772514,8.14536934,123.57,123.56,267.12]
[1742302773025,21.71399372,123.57,123.56,267.12]
[1742302774427,0.05216934,123.57,123.56,267.12]
[1742302775121,0.05216934,123.57,123.56,275.2138]
[1742302780122,0.05216934,123.57,123.56,304.1738]
[1742302781624,29.01216934,123.57,123.54,0.05124798]
[1742302781925,42.58079372,123.57,123.54,0.05124798]
[1742302782124,8.0945,123.55,123.54,0.05124798]
[1742302786232,21.66312438,123.55,123.54,0.05124798]
[1742302786833,50.62312438,123.55,123.54,0.05124798]
[1742302801855,50.62312438,123.55,123.54,4.798e-05]
[1742302802360,8.0965,123.52,123.51,267.1]
[1742302802549,42.52862438,123.52,123.47,42.52862438]
[1742302802749,42.52862438,123.52,123.47,309.70862438]
[1742302803149,8.0981,123.5,123.47,309.70862438]
[1742302803553,0.05126639,123.5,123.47,280.80206088]
[1742302803754,8.14916639,123.5,123.48,8.0988]
[1742302804058,8.14916639,123.5,123.47,280.80206088]
[1742302804261,0.05126639,123.5,123.47,267.2334365]
[1742302804759,0.05126639,123.5,123.47,280.80206088]
[1742302805755,0.05126639,123.5,123.48,8.0991]
[1742302806557,0.05126639,123.5,123.47,288.90146088]
[1742302807260,0.05126639,123.5,123.49,8.0984]
[1742302808465,13.56862438,123.55,123.52,8.096]
[1742302809157,8.0954,123.54,123.52,8.096]
[1742302809763,8.14763661,123.54,123.52,8.14985331]
[1742302813173,0.05223661,123.54,123.53,8.0958]
[1742302813771,8.14733661,123.54,123.52,8.14995331]
[1742302815172,8.14733661,123.54,123.52,0.05385331]
[1742302815775,8.14733661,123.54,123.52,8.15015331]
[1742302816069,8.14733661,123.54,123.52,0.05385331]
[1742302816070,8.0958,123.53,123.52,0.05385331]
[1742302816268,50.62442438,123.53,123.52,5.331e-05]
[1742302816667,50.62442438,123.53,123.47,296.14]
[1742302816668,8.0991,123.48,123.47,296.14]
[1742302816973,8.0991,123.48,123.47,267.18]
[1742302817768,42.52862438,123.51,123.47,267.18]
[1742302817972,0.05719618,123.49,123.47,267.18]
[1742302818268,0.05719618,123.49,123.48,8.099]
[1742302818469,0.05719618,123.49,123.48,21.66762438]
[1742302819074,42.52862438,123.54,123.5,8.0973]
[1742302819272,42.52862438,123.54,123.49,13.56862438]
[1742302819467,8.0962,123.53,123.49,42.52862438]
[1742302819674,42.52862438,123.54,123.49,42.52862438]
[1742302820069,37.0554,123.54,123.52,8.0961]
[1742302820271,0.05509621,123.53,123.52,8.0961]
[1742302820469,0.05509621,123.53,123.5,13.62490673]
[1742302820670,0.05509621,123.53,123.51,8.0969]
[1742302820671,8.15089621,123.53,123.51,8.0969]
[1742302820870,13.62372059,123.53,123.5,0.05628235]
[1742302821371,8.0965,123.52,123.5,0.05628235]
[1742302822175,8.0965,123.52,123.5,8.15388235]
[1742302823376,21.71982059,123.53,123.51,8.0971]
[1742302823979,8.0965,123.52,123.5,8.15368235]
[1742302824276,13.62372059,123.53,123.5,0.05628235]
[1742302824476,8.0965,123.52,123.5,0.05628235]
[1742302825269,8.0971,123.51,123.5,0.05628235]
[1742302828381,21.66572438,123.51,123.5,0.05628235]
[1742302832579,8.0971,123.51,123.5,0.05628235]
[1742302834879,21.66572438,123.51,123.5,0.05628235]
[1742302835084,21.66572438,123.51,123.5,8.235e-05]
[1742302837985,8.0971,123.51,123.5,8.235e-05]
[1742302840198,21.66572438,123.51,123.5,8.235e-05]
[1742302854906,16.1959,123.5,123.39,267.28]
[1742302855105,13.56862438,123.46,123.42,8.103]
[1742302855297,42.54862438,123.46,123.42,8.103]
[1742302855497,21.67022438,123.45,123.42,8.103]
[1742302856206,21.72884527,123.45,123.42,8.16499603]
[1742302856409,13.62724527,123.45,123.42,8.16499603]
[1742302856701,13.62724527,123.45,123.42,0.06199603]
[1742302856903,8.1018,123.44,123.42,0.06199603]
[1742302857104,21.67042438,123.44,123.42,0.06199603]
[1742302857605,8.1024,123.43,123.42,0.06199603]
[1742302858006,21.67102438,123.43,123.42,0.06199603]
[1742302864612,13.56862438,123.4,123.35,267.38]
[1742302864802,42.54862438,123.39,123.35,267.38]
[1742302865007,28.98,123.38,123.35,275.4872]
[1742302865412,37.0857,123.38,123.35,275.4872]
[1742302865614,37.1375454,123.38,123.35,275.54283288]
[1742302865913,42.60046978,123.38,123.35,267.43563288]
[1742302866415,21.67532438,123.37,123.35,267.43563288]
[1742302866807,13.56862438,123.37,123.35,267.43563288]
[1742302867007,50.65562438,123.36,123.35,0.05563288]
[1742302867209,0.0518454,123.38,123.35,13.62425726]
[1742302867509,0.0518454,123.38,123.37,8.1063]
[1742302870216,0.0518454,123.38,123.36,8.1066]
[1742302871218,0.0518454,123.38,123.35,8.16293288]
[1742302871420,13.56862438,123.37,123.35,0.05563288]
[1742302871620,42.54862438,123.37,123.35,0.05563288]
[1742302872022,50.65532438,123.37,123.35,0.05563288]
[1742302872518,50.65532438,123.37,123.35,8.16323288]
[1742302872714,42.54862438,123.37,123.35,0.05563288]
[1742302872915,0.0518454,123.38,123.35,13.62425726]
[1742302873114,0.0518454,123.38,123.37,21.67492438]
[1742302873314,21.67142438,123.43,123.37,281.04862438]
[1742302873515,42.54862438,123.43,123.38,13.56862438]
[1742302873910,50.65142438,123.43,123.38,13.56862438]
[1742302874522,0.06094553,123.42,123.4,13.56862438]
[1742302875015,0.06094553,123.42,123.41,8.1037]
[1742302875610,51.81727071,123.46,123.44,8.1012]
[1742302875920,45.03295852,123.46,123.44,8.1012]
[1742302876317,53.13335852,123.46,123.43,8.102]
[1742302876517,53.13335852,123.46,123.41,13.56862438]
[1742302876718,66.7019829,123.46,123.41,13.56862438]
[1742302877022,8.15360627,123.45,123.42,0.05703677]
[1742302877425,8.1018,123.44,123.42,8.15953677]
[1742302877625,8.1018,123.44,123.42,0.05703677]
[1742302878321,8.1024,123.43,123.42,0.05703677]
[1742302879226,29.0,123.44,123.42,0.05703677]
[1742302879924,37.102,123.44,123.42,0.05703677]
[1742302880223,29.0,123.44,123.42,0.05703677]
[1742302880526,8.1024,123.43,123.42,0.05703677]
[1742302884219,50.27204394,123.44,123.37,267.48]
[1742302884419,21.27204394,123.41,123.37,267.48]
[1742302884615,28.98,123.4,123.37,267.48]
[1742302884821,8.1054,123.39,123.37,267.48]
[1742302885022,28.98,123.4,123.37,267.48]
[1742302885322,37.0846,123.4,123.37,275.5862]
[1742302885524,37.14664999,123.4,123.37,267.53844764]
[1742302886228,8.105,123.39,123.37,267.53844764]
[1742302886826,29.04204999,123.4,123.37,267.53844764]
[1742302887427,8.1056,123.38,123.37,267.53844764]
[1742302888626,37.0853,123.39,123.37,267.53844764]
[1742302889422,8.1056,123.38,123.37,267.53844764]
[1742302889829,28.98,123.39,123.37,267.53844764]
[1742302890032,28.98,123.39,123.37,275.64454764]
[1742302890228,28.98,123.39,123.37,267.53844764]
[1742302890529,37.0853,123.39,123.37,267.53844764]
[1742302891432,8.1056,123.38,123.37,267.53844764]
[1742302891735,28.98,123.39,123.37,267.53844764]
[1742302892134,28.98,123.39,123.37,0.05844764]
[1742302893124,0.06204999,123.4,123.37,0.05844764]
[1742302894036,0.06204999,123.4,123.39,8.105]
[1742302894938,45.03295852,123.44,123.39,296.85204394]
[1742302895137,45.03295852,123.44,123.41,21.27204394]
[1742302895530,45.03295852,123.44,123.41,23.44354394]
[1742302896142,45.09070667,123.44,123.41,23.49965626]
[1742302896437,0.05774815,123.44,123.41,23.49965626]
[1742302896938,0.05774815,123.44,123.42,8.103]
[1742302898137,29.03774815,123.44,123.41,0.05611232]
[1742302899440,0.05774815,123.44,123.41,21.32815626]
[1742302900034,0.05774815,123.44,123.41,23.38715626]
[1742302900830,0.05774815,123.44,123.42,28.98]
[1742302901136,0.05774815,123.44,123.43,2.1582]
[1742302901636,8.0988,123.49,123.43,2.1582]
[1742302901831,37.0788,123.49,123.43,2.1582]
[1742302902455,37.0788,123.49,123.46,8.0999]
[1742302902640,8.0988,123.49,123.43,2.1582]
[1742302902841,37.13278299,123.49,123.46,8.15234675]
[1742302903037,0.05398299,123.49,123.46,0.05214675]
[1742302903544,0.05398299,123.49,123.47,8.0994]
[1742302903747,8.15248299,123.49,123.47,8.0994]
[1742302904146,0.05398299,123.49,123.47,8.0994]
[1742302904542,0.05398299,123.49,123.46,8.15224675]
[1742302904745,28.98,123.48,123.46,0.05214675]
[1742302905646,0.05398299,123.49,123.46,0.05214675]
[1742302905853,8.15278299,123.49,123.46,0.05214675]
[1742302906256,8.15278299,123.49,123.46,8.15224675]
[1742302906856,0.05398299,123.49,123.47,8.0997]
[1742302908655,0.05398299,123.49,123.46,0.05214675]
[1742302908856,8.15258299,123.49,123.46,0.05214675]
[1742302909049,8.15258299,123.49,123.47,8.0996]
[1742302909562,0.05398299,123.49,123.47,8.0996]
[1742302909763,0.05398299,123.49,123.46,0.05214675]
[1742302910860,0.05398299,123.49,123.48,8.0991]
[1742302915765,0.05398299,123.49,123.47,8.0994]
[1742302916266,0.05398299,123.49,123.46,0.05214675]
[1742302916663,8.0994,123.48,123.46,8.15224675]
[1742302917871,0.05398299,123.49,123.46,0.05214675]
[1742302919168,8.15248299,123.49,123.47,8.0992]
[1742302919467,8.15248299,123.49,123.46,0.05214675]
[1742302919468,0.05398299,123.49,123.46,0.05214675]
[1742302919769,0.05398299,123.49,123.48,8.0991]
[1742302920268,0.05398299,123.49,123.47,8.0994]
[1742302920770,8.15268299,123.49,123.47,8.0994]
[1742302921069,0.05398299,123.49,123.46,0.05214675]
[1742302921363,0.05398299,123.49,123.46,29.03214675]
[1742302922261,28.96,123.48,123.46,0.05214675]
[1742302922769,8.0997,123.47,123.46,0.05214675]
[1742302923169,28.96,123.48,123.46,0.05214675]
[1742302923369,28.96,123.48,123.47,8.0997]
[1742302923563,0.05398299,123.49,123.46,0.05214675]
[1742302926066,0.05398299,123.49,123.48,8.0991]
[1742302926866,0.05398299,123.49,123.47,8.0993]
[1742302927272,8.15268299,123.49,123.47,8.0993]
[1742302928371,8.0991,123.48,123.46,8.15224675]
[1742302928571,28.96,123.48,123.46,0.05214675]
[1742302928968,37.0593,123.48,123.46,8.15254675]
[1742302929469,28.96,123.48,123.47,8.0997]